fUSD/lending_fUSD_20260107
["ID","MTS","AMOUNT","RATE_DAILY","PERIOD"]
[400685825,1767779444523,-214.124908,0.00031507,31]
[400685827,1767779444532,-214.124908,0.00031507,31]
[400685829,1767779444543,-204.787634,0.00031507,31]
[400685831,1767779444552,-204.787634,0.00031507,31]
[400685833,1767779444562,-2118.512815,0.00031507,31]
[400685835,1767779444572,-214.124908,0.00031507,31]
[400685838,1767779444582,-2118.512815,0.00031507,31]
[400685840,1767779444591,-214.124908,0.00031507,31]
[400685842,1767779444600,-204.787634,0.00031507,31]
[400685844,1767779444609,-204.787634,0.00031507,31]
[400685846,1767779444618,-2118.512815,0.00031507,31]
[400685848,1767779444628,-214.124908,0.00031507,31]
[400685850,1767779444638,-2118.512815,0.00031507,31]
[400685852,1767779444648,-214.124908,0.00031507,31]
[400685854,1767779444658,-525.72357,0.00031507,31]
[400685856,1767779444667,-214.124908,0.00031507,31]
[400685858,1767779444676,-525.72357,0.00031507,31]
[400685860,1767779444686,-263.20645,0.00031507,31]
[400685862,1767779444695,-214.124908,0.00031507,31]
[400685864,1767779444704,-2118.512815,0.00031507,31]
[400685866,1767779444713,-2118.512815,0.00031507,31]
[400685868,1767779444722,-2118.512815,0.00031507,31]
[400685870,1767779444731,-2118.512815,0.00031507,31]
[400685872,1767779444739,-151.0,0.00031507,31]
[400685874,1767779444748,-151.0,0.00031507,31]
[400685876,1767779444757,-278.602015,0.00031507,31]
[400685878,1767779444766,-187.533214,0.00031507,31]
[400685880,1767779444774,-275.784864,0.00031507,31]
[400685882,1767779444784,-275.784864,0.00031507,31]
[400685884,1767779444793,-191.120632,0.00031507,31]
[400685886,1767779444802,-275.784864,0.00031507,31]
[400685888,1767779444811,-275.784864,0.00031507,31]
[400685890,1767779444821,-275.784864,0.00031507,31]
[400685892,1767779444830,-275.784864,0.00031507,31]
[400685894,1767779444839,-151.0,0.00031507,31]
[400685896,1767779444849,-275.784864,0.00031507,31]
[400685898,1767779444858,-151.0,0.00031507,31]
[400685900,1767779444868,-275.784864,0.00031507,31]
[400685902,1767779444877,-151.0,0.00031507,31]
[400685904,1767779444887,-151.0,0.00031507,31]
[400685906,1767779444897,-151.0,0.00031507,31]
[400685908,1767779444906,-151.0,0.00031507,31]
[400685910,1767779444915,-180.654415,0.00031507,31]
[400685912,1767779444924,-151.0,0.00031507,31]
[400685914,1767779444933,-151.0,0.00031507,31]
[400685916,1767779444942,-151.0,0.00031507,31]
[400685918,1767779444951,-151.0,0.00031507,31]
[400685920,1767779444962,-151.0,0.00031507,31]
[400685922,1767779444971,-226.566103,0.00031507,31]
[400685924,1767779444981,-151.0,0.00031507,31]
[400685926,1767779444990,-151.0,0.00031507,31]
[400685928,1767779444999,-151.0,0.00031507,31]
[400685930,1767779445009,-151.0,0.00031507,31]
[400685932,1767779445019,-1211.51982,0.00031507,31]
[400685934,1767779445028,-1211.51982,0.00031507,31]
[400685936,1767779445039,-1211.51982,0.00031507,31]
[400685938,1767779445048,-1211.51982,0.00031507,31]
[400685940,1767779445057,-1211.51982,0.00031507,31]
[400685942,1767779445066,-1211.51982,0.00031507,31]
[400685944,1767779445074,-1211.51982,0.00031507,31]
[400685945,1767779445082,-1211.51982,0.00031507,31]
[400685947,1767779445091,-257.224011,0.00031507,31]
[400685950,1767779445101,-257.224011,0.00031507,31]
[400685952,1767779445110,-257.224011,0.00031507,31]
[400685954,1767779445120,-257.224011,0.00031507,31]
[400685956,1767779445130,-257.224011,0.00031507,31]
[400685958,1767779445141,-257.224011,0.00031507,31]
[400685959,1767779445150,-257.224011,0.00031507,31]
[400685961,1767779445160,-257.224011,0.00031507,31]
[400685963,1767779445169,-856.378739,0.00031507,31]
[400685965,1767779445178,-210.774458,0.00031507,31]
[400685967,1767779445188,-856.378739,0.00031507,31]
[400685970,1767779445198,-210.774458,0.00031507,31]
[400685971,1767779445207,-856.378739,0.00031507,31]
[400685973,1767779445216,-210.774458,0.00031507,31]
[400685976,1767779445226,-856.378739,0.00031507,31]
[400685978,1767779445235,-210.774458,0.00031507,31]
[400685980,1767779445244,-553.317148,0.00031507,15]
[400685982,1767779445255,-553.317148,0.00031507,15]
[400685983,1767779445264,-856.378739,0.00031507,31]
[400685986,1767779445274,-856.378739,0.00031507,31]
[400685988,1767779445283,-210.774458,0.00031507,31]
[400685990,1767779445294,-151.0,0.00031507,31]
[400685992,1767779445304,-210.774458,0.00031507,31]
[400685994,1767779445313,-151.0,0.00031507,31]
[400685996,1767779445322,-553.317148,0.00031507,15]
[400685998,1767779445331,-553.317148,0.00031507,15]
[400686000,1767779445341,-856.378739,0.00031507,31]
[400686002,1767779445351,-856.378739,0.00031507,31]
[400686004,1767779445361,-210.774458,0.00031507,31]
[400686006,1767779445371,-151.0,0.00031507,31]
[400686008,1767779445381,-210.774458,0.00031507,31]
[400686010,1767779445394,-553.317148,0.00031507,15]
[400686012,1767779445406,-151.0,0.00031507,31]
[400686014,1767779445416,-553.317148,0.00031507,15]
[400686016,1767779445425,-553.317148,0.00031507,15]
[400686017,1767779445435,-553.317148,0.00031507,15]
[400686019,1767779445445,-151.0,0.00031507,31]
[400686021,1767779445454,-775.921114,0.00031507,31]
[400686023,1767779445463,-775.921114,0.00031507,31]
[400686025,1767779445472,-775.921114,0.00031507,31]
[400686027,1767779445481,-775.921114,0.00031507,31]
[400686029,1767779445492,-775.921114,0.00031507,31]
[400686031,1767779445501,-775.921114,0.00031507,31]
[400686033,1767779445510,-775.921114,0.00031507,31]
[400686035,1767779445519,-775.921114,0.00031507,31]
[400686037,1767779445528,-151.0,0.00031507,31]
[400686039,1767779445536,-151.0,0.00031507,31]
[400686041,1767779445545,-151.0,0.00031507,31]
[400686043,1767779445554,-151.0,0.00031507,31]
[400686045,1767779445564,-317.509641,0.00031507,31]
[400686047,1767779445573,-317.509641,0.00031507,31]
[400686049,1767779445582,-317.509641,0.00031507,31]
[400686051,1767779445592,-151.0,0.00031507,31]
[400686053,1767779445602,-317.509641,0.00031507,31]
[400686056,1767779445611,-151.0,0.00031507,31]
[400686057,1767779445620,-151.0,0.00031507,31]
[400686059,1767779445629,-467.653299,0.00031507,31]
[400686061,1767779445640,-222.615984,0.00031507,31]
[400686064,1767779445649,-222.615984,0.00031507,31]
[400686065,1767779445659,-467.653299,0.00031507,31]
[400686068,1767779445668,-222.615984,0.00031507,31]
[400686070,1767779445678,-467.653299,0.00031507,31]
[400686072,1767779445687,-467.653299,0.00031507,31]
[400686074,1767779445697,-222.615984,0.00031507,31]
[400686076,1767779445706,-151.0,0.00031507,31]
[400686078,1767779445715,-151.0,0.00031507,31]
[400686080,1767779445724,-151.0,0.00031507,31]
[400686082,1767779445734,-151.0,0.00031507,31]
[400686084,1767779445743,-151.0,0.00031507,31]
[400686086,1767779445752,-151.0,0.00031507,31]
[400686088,1767779445761,-151.0,0.00031507,31]
[400686090,1767779445770,-151.0,0.00031507,31]
[400686092,1767779445780,-203.552237,0.00031507,31]
[400686094,1767779445789,-151.0,0.00031507,31]
[400686145,1767779446037,-151.0,0.00031507,31]
[400686148,1767779446047,-151.0,0.00031507,31]
[400686151,1767779446056,-151.0,0.00031507,7]
[400686154,1767779446066,-179.036389,0.00031507,7]
[400686157,1767779446076,-151.0,0.00031507,31]
[400686160,1767779446085,-151.0,0.00031507,31]
[400686163,1767779446094,-151.0,0.00031507,31]
[400686166,1767779446103,-151.0,0.00031507,31]
[400686169,1767779446112,-151.0,0.00031507,31]
[400686172,1767779446122,-212.579064,0.00031507,31]
[400686175,1767779446131,-453.703657,0.00031507,31]
[400686178,1767779446141,-453.703657,0.00031507,31]
[400686181,1767779446150,-453.703657,0.00031507,31]
[400686184,1767779446159,-453.703657,0.00031507,31]
[400686187,1767779446169,-151.0,0.00031507,31]
[400686190,1767779446178,-151.0,0.00031507,31]
[400686193,1767779446187,-151.0,0.00031507,31]
[400686196,1767779446196,-151.0,0.00031507,31]
[400686199,1767779446206,-151.0,0.00031507,31]
[400686202,1767779446216,-983.95629,0.00031507,31]
[400686205,1767779446225,-151.0,0.00031507,31]
[400686208,1767779446234,-983.95629,0.00031507,31]
[400686211,1767779446243,-983.95629,0.00031507,31]
[400686214,1767779446253,-983.95629,0.00031507,31]
[400686217,1767779446263,-777.305943,0.00031507,31]
[400686220,1767779446273,-777.305943,0.00031507,31]
[400686223,1767779446283,-777.305943,0.00031507,31]
[400686225,1767779446292,-777.305943,0.00031507,31]
[400686227,1767779446302,-151.0,0.00031507,31]
[400686228,1767779446312,-151.0,0.00031507,31]
[400686231,1767779446322,-151.0,0.00031507,31]
[400686234,1767779446332,-216.538202,0.00031507,31]
[400686237,1767779446341,-317.509641,0.00031507,31]
[400686240,1767779446351,-317.509641,0.00031507,31]
[400686243,1767779446360,-317.509641,0.00031507,31]
[400686246,1767779446370,-151.0,0.00031507,31]
[400686249,1767779446379,-317.509641,0.00031507,31]
[400686252,1767779446392,-269.563288,0.00031507,31]
[400686255,1767779446402,-151.0,0.00031507,31]
[400686259,1767779446414,-467.653299,0.00031507,31]
[400686262,1767779446424,-222.615984,0.00031507,31]
[400686265,1767779446434,-222.615984,0.00031507,31]
[400686268,1767779446443,-467.653299,0.00031507,31]
[400686271,1767779446452,-222.615984,0.00031507,31]
[400686274,1767779446462,-467.653299,0.00031507,31]
[400686277,1767779446472,-467.653299,0.00031507,31]
[400686280,1767779446481,-222.615984,0.00031507,31]
[400686283,1767779446491,-151.0,0.00031507,31]
[400686287,1767779446501,-151.0,0.00031507,31]
[400686290,1767779446512,-151.0,0.00031507,31]
[400686292,1767779446521,-389.713068,0.00031507,28]
[400686295,1767779446531,-151.0,0.00031507,31]
[400686298,1767779446540,-151.0,0.00031507,31]
[400686301,1767779446549,-151.0,0.00031507,31]
[400686304,1767779446559,-389.713068,0.00031507,28]
[400686307,1767779446568,-151.0,0.00031507,31]
[400686310,1767779446577,-151.0,0.00031507,31]
[400686313,1767779446587,-389.713068,0.00031507,28]
[400686316,1767779446596,-389.713068,0.00031507,28]
[400686320,1767779446606,-151.0,0.00031507,31]
[400686322,1767779446616,-151.0,0.00031507,31]
[400686326,1767779446628,-151.0,0.00031507,31]
[400686329,1767779446639,-151.0,0.00031507,31]
[400686332,1767779446650,-151.0,0.00031507,2]
[400686335,1767779446660,-151.0,0.00031507,2]
[400686339,1767779446672,-151.0,0.00031507,2]
[400686342,1767779446682,-166.66,0.00031543,30]
[400686345,1767779446695,-785.08,0.000316,30]
[400686348,1767779446710,-175.0,0.00031644,14]
[400686351,1767779446721,-4255.0,0.00031653,5]
[400686354,1767779446730,-517.76,0.00031723,30]
[400686357,1767779446740,-30000.0,0.0003178,30]
[400686360,1767779446750,-166.66,0.00032002,2]
[400686363,1767779446760,-509.0,0.0003201,4]
[400686365,1767779446769,-166.66,0.00032168,30]
[400686368,1767779446779,-357.6762453,0.00032293,2]
[400686371,1767779446788,-158.31125176,0.0003234,2]
[400686373,1767779446798,-537.34234932,0.00032411,2]
[400686375,1767779446807,-13484.94,0.000325,2]
[400686377,1767779446818,-184.6862361,0.00032712,2]
[400686381,1767779446828,-166.66,0.00032792,30]
[400686384,1767779446838,-1000.0,0.000328,7]
[400686387,1767779446847,-241.43,0.00032867,2]
[400686389,1767779446856,-158.25601146,0.00032874,2]
[400686392,1767779446866,-5000.0,0.00032876,30]
[400686395,1767779446875,-200.0,0.00032876,2]
[400686400,1767779446896,-151.0,0.00032877,31]
[400686404,1767779446907,-151.0,0.00032877,31]
[400686407,1767779446921,-151.0,0.00032877,31]
[400686410,1767779446930,-151.0,0.00032877,31]
[400686413,1767779446940,-151.0,0.00032877,31]
[400686416,1767779446952,-3382.25,0.00032877,120]
[400686419,1767779446963,-200.0,0.00032877,2]
[400686422,1767779446973,-157.18955148,0.00032877,7]
[400686425,1767779446984,-500.0,0.00032877,7]
[400686428,1767779446995,-2443.25,0.000329,2]
[400686432,1767779447005,-927.37,0.000329,14]
[400686435,1767779447015,-645.27,0.000329,14]
[400686438,1767779447026,-509.0,0.00033076,5]
[400686440,1767779447038,-785.08,0.000331,30]
[400686443,1767779447048,-200.0,0.00033206,2]
[400686445,1767779447057,-180.0,0.00033226,30]
[400686448,1767779447069,-1000.0,0.000333,2]
[400686450,1767779447078,-175.0,0.00033451,120]
[400686453,1767779447089,-295.94924026,0.0003356,120]
[400686456,1767779447100,-370.91026638,0.00033662,2]
[400686458,1767779447110,-152.0,0.00033858,3]
[400686461,1767779447120,-236.86849515,0.00033863,11]
[400686462,1767779447133,-1000.0,0.00034,7]
[400686465,1767779447143,-4282.4,0.00034002,2]
[400686468,1767779447155,-1081.85,0.000341,14]
[400686471,1767779447165,-175.0,0.0003412,120]
[400686473,1767779447175,-509.0,0.00034143,6]
[400686476,1767779447184,-4018.93893445,0.00034185,2]
[400686479,1767779447197,-1330.0,0.00034342,2]
[400686481,1767779447218,-614.0,0.00034342,2]
[400686483,1767779447240,-3467.0,0.00034342,2]
[400686485,1767779447260,-1266.0,0.00034342,2]
[400686487,1767779447271,-505.0,0.00034342,2]
[400686489,1767779447281,-150.0,0.00034342,2]
[400686492,1767779447295,-6551.0,0.00034342,2]
[400686494,1767779447305,-565.0,0.00034342,2]
[400686496,1767779447317,-4617.0,0.00034342,2]
[400686498,1767779447328,-158.31125176,0.00034361,2]
[400686500,1767779447338,-160.42,0.00034377,2]
[400686502,1767779447349,-645.27,0.000345,14]
[400686504,1767779447359,-152.0,0.0003459,4]
[400686506,1767779447370,-927.37,0.000347,14]
[400686508,1767779447380,-733.61,0.00034843,2]
[400686510,1767779447392,-2443.25,0.000349,2]
[400686512,1767779447403,-384.63394623,0.00035031,2]
[400686514,1767779447413,-978.0,0.000351,2]
[400686516,1767779447424,-852.0,0.000351,2]
[400686518,1767779447434,-601.0,0.000351,2]
[400686520,1767779447445,-175.0,0.00035123,120]
[400686522,1767779447456,-509.0,0.00035209,8]
[400686524,1767779447466,-2212.7452,0.0003522,30]
[400686526,1767779447477,-13484.94,0.000353,2]
[400686528,1767779447489,-152.0,0.00035322,5]
[400686531,1767779447504,-500.0,0.00035419,2]
[400686533,1767779447514,-175.0,0.00035441,30]
[400686535,1767779447525,-785.08,0.000355,30]
[400686537,1767779447536,-245.4,0.000355,13]
[400686539,1767779447546,-288.8,0.000355,13]
[400686541,1767779447557,-526.8,0.00035616,49]
[400686543,1767779447567,-495.9,0.00035616,41]
[400686545,1767779447578,-156.69541014,0.00035616,107]
[400686547,1767779447590,-522.6,0.00035616,35]
[400686549,1767779447600,-526.2,0.00035616,24]
[400686551,1767779447611,-332.22847225,0.00035616,7]
[400686553,1767779447622,-488.78458091,0.00035616,7]
[400686555,1767779447633,-500.0,0.00035616,7]
[400686557,1767779447644,-640.59735601,0.00035616,7]
[400686559,1767779447654,-187.47,0.00035616,2]
[400686561,1767779447664,-151.0,0.00035616,31]
[400686563,1767779447674,-151.0,0.00035616,31]
[400686565,1767779447684,-151.0,0.00035616,31]
[400686567,1767779447699,-151.0,0.00035616,31]
[400686569,1767779447710,-151.0,0.00035616,31]
[400686571,1767779447721,-151.0,0.00035616,31]
[400686573,1767779447731,-645.27,0.000357,14]
[400686575,1767779447744,-175.0,0.00035826,120]
[400686577,1767779447757,-630.07344,0.00035888,30]
[400686580,1767779447768,-500.01,0.00036,30]
[400686582,1767779447779,-927.37,0.00036,14]
[400686584,1767779447789,-168.0,0.00036,30]
[400686586,1767779447799,-517.76,0.00036049,30]
[400686588,1767779447810,-152.0,0.00036055,6]
[400686590,1767779447821,-630.07344,0.00036088,30]
[400686592,1767779447831,-1081.85,0.000362,14]
[400686594,1767779447842,-1688.95959214,0.0003624,5]
[400686596,1767779447852,-30759.29733124,0.0003624,5]
[400686598,1767779447862,-509.0,0.00036275,9]
[400686600,1767779447875,-630.07344,0.00036288,30]
[400686602,1767779447885,-158.31125182,0.00036382,2]
[400686604,1767779447899,-398.86540225,0.000364,2]
[400686606,1767779447910,-537.34234932,0.00036429,2]
[400686609,1767779447920,-630.07344,0.00036488,30]
[400686611,1767779447931,-160.0,0.000365,17]
[400686613,1767779447942,-160.0,0.000365,17]
[400686615,1767779447952,-630.07344,0.00036688,30]
[400686617,1767779447962,-1307.44549202,0.000367,5]
[400686619,1767779447976,-500.01,0.0003672,30]
[400686621,1767779447986,-152.0,0.00036787,7]
[400686623,1767779447996,-2443.25,0.000368,2]
[400686625,1767779448008,-496.3,0.00036825,2]
[400686627,1767779448018,-175.0,0.00036879,120]
[400686629,1767779448028,-630.07344,0.00036888,30]
[400686631,1767779448038,-1000.0,0.00037,2]
[400686633,1767779448049,-660.0,0.00037,10]
[400686635,1767779448059,-537.29,0.00037,10]
[400686637,1767779448070,-630.07344,0.00037088,30]
[400686639,1767779448080,-221.13408838,0.000372,120]
[400686642,1767779448090,-166.66,0.00037284,2]
[400686644,1767779448104,-630.07344,0.00037288,30]
[400686646,1767779448114,-785.08,0.000373,30]
[400686648,1767779448124,-645.27,0.000373,14]
[400686650,1767779448135,-509.0,0.00037342,10]
[400686652,1767779448146,-1330.0,0.00037342,2]
[400686654,1767779448156,-614.0,0.00037342,2]
[400686656,1767779448166,-3467.0,0.00037342,2]
[400686658,1767779448177,-1266.0,0.00037342,2]
[400686660,1767779448187,-505.0,0.00037342,2]
[400686662,1767779448197,-150.0,0.00037342,2]
[400686663,1767779448208,-2318.321,0.00037342,2]
[400686664,1767779448218,-565.0,0.00037342,2]
[400686665,1767779448228,-4617.0,0.00037342,2]
[400686666,1767779448239,-175.0,0.00037357,120]
[400686667,1767779448250,-169.0,0.00037397,30]
[400686668,1767779448260,-927.37,0.000374,14]
[400686669,1767779448270,-500.01,0.0003744,30]
[400686670,1767779448280,-630.07344,0.00037488,30]
[400686671,1767779448292,-160.0,0.000375,22]
[400686672,1767779448303,-160.0,0.000375,22]
[400686673,1767779448314,-160.42,0.00037502,2]
[400686674,1767779448324,-152.0,0.0003752,8]
[400686675,1767779448334,-13484.94,0.000376,2]
[400686676,1767779448344,-1000.0,0.00037603,7]
[400686677,1767779448354,-175.0,0.00037617,120]
[400686678,1767779448364,-1000.0,0.00037653,7]
[400686679,1767779448375,-175.0,0.00037656,30]
[400686680,1767779448384,-630.07344,0.00037688,30]
[400686682,1767779448395,-300.0,0.00037696,2]
[400686685,1767779448405,-300.0,0.00037705,2]
[400686687,1767779448416,-482.63,0.00037726,2]
[400686689,1767779448427,-661.33,0.00037726,2]
[400686691,1767779448437,-661.33,0.00037726,2]
[400686693,1767779448447,-482.63,0.00037726,2]
[400686695,1767779448456,-482.63,0.00037726,2]
[400686697,1767779448466,-661.33,0.00037726,2]
[400686699,1767779448475,-661.33,0.00037726,2]
[400686701,1767779448485,-482.63,0.00037753,2]
[400686703,1767779448494,-466.59,0.00037753,2]
[400686705,1767779448504,-150.0,0.00037753,2]
[400686707,1767779448514,-466.59,0.00037753,2]
[400686709,1767779448524,-466.59,0.00037753,2]
[400686730,1767779448534,-179.04,0.00037753,2]
[400686732,1767779448725,-472.41,0.00037753,2]
[400686734,1767779448734,-556.08,0.00037753,2]
[400686736,1767779448744,-300.0,0.00037774,2]
[400686738,1767779448753,-661.33,0.00037784,2]
[400686740,1767779448762,-661.02,0.00037784,2]
[400686742,1767779448771,-2443.25,0.000378,2]
[400686744,1767779448780,-300.0,0.00037809,2]
[400686746,1767779448789,-1000.0,0.00037828,7]
[400686748,1767779448798,-300.0,0.00037839,2]
[400686750,1767779448807,-1000.0,0.00037842,7]
[400686752,1767779448817,-300.0,0.00037853,2]
[400686754,1767779448826,-300.0,0.00037869,2]
[400686756,1767779448835,-1000.0,0.00037878,7]
[400686758,1767779448844,-630.07344,0.00037888,30]
[400686760,1767779448854,-1000.0,0.00037898,7]
[400686762,1767779448868,-53973.99690133,0.000379,30]
[400686764,1767779448878,-645.27,0.000379,14]
[400686766,1767779448888,-300.0,0.00037912,2]
[400686768,1767779448898,-300.0,0.00037944,2]
[400686770,1767779448908,-300.0,0.00037971,2]
[400686772,1767779448918,-175.0,0.00037973,30]
[400686774,1767779448928,-300.0,0.00037988,2]
[400686777,1767779448939,-300.0,0.00037992,2]
[400686778,1767779448948,-300.0,0.00037995,2]
[400686780,1767779448962,-219.49296091,0.00038,120]
[400686782,1767779448971,-785.08,0.00038,30]
[400686784,1767779448980,-927.37,0.00038,14]
[400686786,1767779448990,-1081.85,0.00038,14]
[400686788,1767779449001,-160.0,0.00038,24]
[400686790,1767779449011,-160.0,0.00038,24]
[400686792,1767779449020,-288.8,0.00038,24]
[400686794,1767779449032,-300.0,0.00038003,2]
[400686796,1767779449041,-1000.0,0.00038005,7]
[400686798,1767779449051,-300.0,0.00038006,2]
[400686800,1767779449065,-1000.0,0.00038008,7]
[400686802,1767779449075,-1000.0,0.00038011,7]
[400686804,1767779449086,-300.0,0.00038011,2]
[400686806,1767779449095,-300.0,0.00038015,2]
[400686808,1767779449105,-1000.0,0.00038017,7]
[400686810,1767779449114,-300.0,0.00038025,2]
[400686812,1767779449123,-300.0,0.00038031,2]
[400686814,1767779449133,-300.0,0.00038035,2]
[400686815,1767779449145,-300.0,0.00038046,2]
[400686818,1767779449155,-1348.46498127,0.00038055,30]
[400686820,1767779449164,-300.0,0.00038058,2]
[400686822,1767779449174,-1000.0,0.0003807,2]
[400686823,1767779449183,-300.0,0.0003807,2]
[400686825,1767779449192,-630.07344,0.00038088,30]
[400686827,1767779449202,-300.0,0.00038096,2]
[400686829,1767779449212,-300.0,0.00038098,2]
[400686831,1767779449221,-1601.02,0.000381,30]
[400686833,1767779449230,-300.0,0.00038101,2]
[400686835,1767779449239,-300.0,0.00038115,2]
[400686837,1767779449248,-1000.0,0.00038129,7]
[400686839,1767779449258,-300.0,0.00038132,2]
[400686841,1767779449268,-300.0,0.00038132,2]
[400686843,1767779449278,-300.0,0.00038135,2]
[400686845,1767779449287,-1000.0,0.00038149,7]
[400686847,1767779449297,-300.0,0.00038152,2]
[400686849,1767779449306,-500.01,0.0003816,30]
[400686851,1767779449315,-300.0,0.00038163,2]
[400686853,1767779449325,-300.0,0.00038163,2]
[400686855,1767779449335,-300.0,0.00038163,2]
[400686857,1767779449344,-300.0,0.00038189,2]
[400686859,1767779449354,-300.0,0.0003819,2]
[400686861,1767779449364,-1348.46498127,0.00038192,30]
[400686863,1767779449373,-300.0,0.00038193,2]
[400686865,1767779449382,-1434.875098,0.000382,2]
[400686867,1767779449392,-154.72923285,0.00038213,7]
[400686869,1767779449401,-300.0,0.0003822,2]
[400686871,1767779449412,-1000.0,0.00038221,7]
[400686873,1767779449421,-300.0,0.00038224,2]
[400686875,1767779449430,-1000.0,0.00038226,7]
[400686877,1767779449439,-300.0,0.00038228,2]
[400686879,1767779449448,-300.0,0.00038231,2]
[400686881,1767779449459,-300.0,0.00038231,2]
[400686883,1767779449468,-300.0,0.00038233,2]
[400686885,1767779449477,-300.0,0.0003824,2]
[400686887,1767779449486,-828.22706,0.0003824,99]
[400686889,1767779449495,-828.22707,0.0003824,99]
[400686890,1767779449505,-828.22706,0.0003824,99]
[400686892,1767779449514,-828.22706,0.0003824,99]
[400686894,1767779449524,-300.0,0.00038241,2]
[400686896,1767779449533,-152.0,0.00038252,9]
[400686898,1767779449542,-300.0,0.00038253,2]
[400686900,1767779449551,-4018.93893445,0.00038256,2]
[400686902,1767779449560,-300.0,0.00038261,2]
[400686904,1767779449569,-300.0,0.00038279,2]
[400686906,1767779449578,-300.0,0.00038284,2]
[400686908,1767779449587,-300.0,0.00038284,2]
[400686910,1767779449597,-630.07344,0.00038288,30]
[400686913,1767779449607,-300.0,0.00038293,2]
[400686914,1767779449616,-300.0,0.00038299,2]
[400686916,1767779449625,-300.0,0.00038307,2]
[400686918,1767779449636,-300.0,0.00038319,2]
[400686920,1767779449645,-300.0,0.0003832,2]
[400686922,1767779449654,-200.0,0.0003832,10]
[400686924,1767779449663,-200.0,0.00038321,10]
[400686926,1767779449672,-200.0,0.00038321,10]
[400686928,1767779449681,-151.0,0.00038353,14]
[400686930,1767779449690,-274.431,0.00038355,2]
[400686932,1767779449700,-1726.1681653,0.00038356,14]
[400686934,1767779449709,-512.58952846,0.00038356,14]
[400686936,1767779449719,-500.0,0.00038356,14]
[400686938,1767779449728,-500.0,0.00038356,3]
[400686940,1767779449737,-500.0,0.00038356,14]
[400686942,1767779449746,-519.80868564,0.00038356,14]
[400686944,1767779449753,-1000.0,0.00038356,2]
[400686946,1767779449762,-500.0,0.00038356,14]
[400686948,1767779449771,-500.0,0.00038356,14]
[400686950,1767779449780,-525.44905661,0.00038356,14]
[400686952,1767779449789,-500.0,0.00038356,14]
[400686953,1767779449798,-500.0,0.00038356,14]
[400686955,1767779449807,-500.0,0.00038356,14]
[400686957,1767779449816,-518.63441108,0.00038356,14]
[400686959,1767779449826,-461.85723905,0.00038356,14]
[400686961,1767779449835,-550.68999048,0.00038356,14]
[400686964,1767779449846,-627.52290504,0.00038356,14]
[400686966,1767779449856,-503.51062736,0.00038356,14]
[400686968,1767779449865,-505.88593407,0.00038356,14]
[400686970,1767779449874,-500.0,0.00038356,14]
[400686972,1767779449883,-500.0,0.00038356,14]
[400686974,1767779449893,-500.0,0.00038356,14]
[400686976,1767779449902,-501.32423715,0.00038356,14]
[400686978,1767779449912,-500.0,0.00038356,14]
[400686980,1767779449921,-533.67761244,0.00038356,14]
[400686982,1767779449930,-541.77213606,0.00038356,14]
[400686984,1767779449939,-500.0,0.00038356,14]